{"text_format":"3","workbook":"xlsx","n_sheets":4,"sheets":["プロジェクト管理ツール","プロジェクトのグラフ","詳細情報","非表示の動的なグラフ データ"],"not_rendered":{"charts":1,"defined_names":8},"read":"whole","date_system":"1900"}

{"sheet":"プロジェクト管理ツール","index":0,"n_rows":22,"n_cols":7,"rows_kept":22}
["このワークシートでは、プロジェクト管理ツールを作成します。\nこのワークシートのタイトルは、セル B1 に入ります。\nこのワークシートを使用する方法 (スクリーン リーダーの説明など) は、\"詳細情報\" ワークシートに入ります。","プロジェクト管理ツール"]
["開始日は、セル D2 に手動で入力できます。または、テンプレートのサンプル数式を使用して、次のマイルストーン表のマイルストーン列で最も早い日付を見つけます。",null,"開始日:",{"$f":"IFERROR(IF(MIN(マイルストーン_1[開始日])=0,TODAY(),MIN(マイルストーン_1[開始日])),TODAY())","v":"2018-08-04"}]
["終了日は、セル D3 に手動で入力できます。または、テンプレートのサンプル数式を使用して、次のマイルストーン表のマイルストーン列で最も遅い日付を見つけます。",null,"終了日:",{"$f":"IFERROR(IF(MAX(マイルストーン_1[終了日])=0,TODAY(),MAX(マイルストーン_1[終了日])),TODAY())","v":"2019-03-02"}]
["マイルストーン表の列に関する情報は、セル B4 から G4 にあります。","次の列には、連続した一連の数値を入力します。","次の列には、マイルストーンまたはアクティビティの開始日を入力します。","次の列には、マイルストーンまたはアクティビティの終了日を入力します。","次の列には、マイルストーンやアクティビティの説明を入力します。この説明は、プロジェクトのグラフに表示されます。","自動計算されます。この列の下のデータは、グラフのマイルストーンとアクティビティのグラフ作成に使用されます。","自動計算されます。各タスクの期間 "]
["テーブルの見出しは、セル B5 から G5 に入ります。\n非表示の 2 つの列があります。セル F5 と G5 の開始日列とタスク期間列は自動計算され、ガント チャート ワークシートでガント チャートを作成するために使用されます。\nサンプル データは、セル B6 からセル E21 に格納されています。\n次の指示は、セル A22 にあります。","位置","開始日","終了日","マイルストーン/アクティビティ","開始日2","タスク期間"]
[null,1,{"$f":"TODAY()-10","v":"2018-08-24"},{"$f":"マイルストーン_1[[#This Row],[開始日]]+10","v":"2018-09-03"},"開始",{"$f":"IFERROR(IF(OR(LEN(マイルストーン_1[[#This Row],[開始日]])=0,LEN(マイルストーン_1[[#This Row],[終了日]])=0),\"\",INT(C6)-INT($C$6)),\"\")","v":{"v":0,"d":"0 "}},{"$f":"IFERROR(IF(マイルストーン_1[[#This Row],[開始日2]]=0,DATEDIF(マイルストーン_1[[#This Row],[開始日]],マイルストーン_1[[#This Row],[終了日]],\"d\")+1,IF(LEN(マイルストーン_1[[#This Row],[開始日2]])=0,\"\",DATEDIF(マイルストーン_1[[#This Row],[開始日]],マイルストーン_1[[#This Row],[終了日]],\"d\")+1)),0)","v":{"v":11,"d":"11 "}}]
[null,2,{"$f":"TODAY()+5","v":"2018-09-08"},{"$f":"マイルストーン_1[[#This Row],[開始日]]+15","v":"2018-09-23"},{"$f":"\"アクティビティ\"&\" \"&ROW($A2)","v":"アクティビティ 2"},{"$f":"IFERROR(IF(OR(LEN(マイルストーン_1[[#This Row],[開始日]])=0,LEN(マイルストーン_1[[#This Row],[終了日]])=0),\"\",INT(C7)-INT($C$6)),\"\")","v":{"v":15,"d":"15 "}},{"$f":"IFERROR(IF(マイルストーン_1[[#This Row],[開始日2]]=0,DATEDIF(マイルストーン_1[[#This Row],[開始日]],マイルストーン_1[[#This Row],[終了日]],\"d\")+1,IF(LEN(マイルストーン_1[[#This Row],[開始日2]])=0,\"\",DATEDIF(マイルストーン_1[[#This Row],[開始日]],マイルストーン_1[[#This Row],[終了日]],\"d\")+1)),0)","v":{"v":16,"d":"16 "}}]
[null,3,{"$f":"TODAY()-30","v":"2018-08-04"},{"$f":"マイルストーン_1[[#This Row],[開始日]]+152","v":"2019-01-03"},"アクティビティ 3",{"$f":"IFERROR(IF(OR(LEN(マイルストーン_1[[#This Row],[開始日]])=0,LEN(マイルストーン_1[[#This Row],[終了日]])=0),\"\",INT(C8)-INT($C$6)),\"\")","v":{"v":-20,"d":"(20)"}},{"$f":"IFERROR(IF(マイルストーン_1[[#This Row],[開始日2]]=0,DATEDIF(マイルストーン_1[[#This Row],[開始日]],マイルストーン_1[[#This Row],[終了日]],\"d\")+1,IF(LEN(マイルストーン_1[[#This Row],[開始日2]])=0,\"\",DATEDIF(マイルストーン_1[[#This Row],[開始日]],マイルストーン_1[[#This Row],[終了日]],\"d\")+1)),0)","v":{"v":153,"d":"153 "}}]
[null,4,{"$f":"TODAY()+2","v":"2018-09-05"},{"$f":"マイルストーン_1[[#This Row],[開始日]]+150","v":"2019-02-02"},"アクティビティ 4",{"$f":"IFERROR(IF(OR(LEN(マイルストーン_1[[#This Row],[開始日]])=0,LEN(マイルストーン_1[[#This Row],[終了日]])=0),\"\",INT(C9)-INT($C$6)),\"\")","v":{"v":12,"d":"12 "}},{"$f":"IFERROR(IF(マイルストーン_1[[#This Row],[開始日2]]=0,DATEDIF(マイルストーン_1[[#This Row],[開始日]],マイルストーン_1[[#This Row],[終了日]],\"d\")+1,IF(LEN(マイルストーン_1[[#This Row],[開始日2]])=0,\"\",DATEDIF(マイルストーン_1[[#This Row],[開始日]],マイルストーン_1[[#This Row],[終了日]],\"d\")+1)),0)","v":{"v":151,"d":"151 "}}]
[null,5,{"$f":"TODAY()+15","v":"2018-09-18"},{"$f":"マイルストーン_1[[#This Row],[開始日]]+14","v":"2018-10-02"},"アクティビティ 5",{"$f":"IFERROR(IF(OR(LEN(マイルストーン_1[[#This Row],[開始日]])=0,LEN(マイルストーン_1[[#This Row],[終了日]])=0),\"\",INT(C10)-INT($C$6)),\"\")","v":{"v":25,"d":"25 "}},{"$f":"IFERROR(IF(マイルストーン_1[[#This Row],[開始日2]]=0,DATEDIF(マイルストーン_1[[#This Row],[開始日]],マイルストーン_1[[#This Row],[終了日]],\"d\")+1,IF(LEN(マイルストーン_1[[#This Row],[開始日2]])=0,\"\",DATEDIF(マイルストーン_1[[#This Row],[開始日]],マイルストーン_1[[#This Row],[終了日]],\"d\")+1)),0)","v":{"v":15,"d":"15 "}}]
[null,6,{"$f":"TODAY()+30","v":"2018-10-03"},{"$f":"マイルストーン_1[[#This Row],[開始日]]+45","v":"2018-11-17"},"アクティビティ 6",{"$f":"IFERROR(IF(OR(LEN(マイルストーン_1[[#This Row],[開始日]])=0,LEN(マイルストーン_1[[#This Row],[終了日]])=0),\"\",INT(C11)-INT($C$6)),\"\")","v":{"v":40,"d":"40 "}},{"$f":"IFERROR(IF(マイルストーン_1[[#This Row],[開始日2]]=0,DATEDIF(マイルストーン_1[[#This Row],[開始日]],マイルストーン_1[[#This Row],[終了日]],\"d\")+1,IF(LEN(マイルストーン_1[[#This Row],[開始日2]])=0,\"\",DATEDIF(マイルストーン_1[[#This Row],[開始日]],マイルストーン_1[[#This Row],[終了日]],\"d\")+1)),0)","v":{"v":46,"d":"46 "}}]
[null,7,{"$f":"TODAY()+45","v":"2018-10-18"},{"$f":"マイルストーン_1[[#This Row],[開始日]]+56","v":"2018-12-13"},"アクティビティ 7",{"$f":"IFERROR(IF(OR(LEN(マイルストーン_1[[#This Row],[開始日]])=0,LEN(マイルストーン_1[[#This Row],[終了日]])=0),\"\",INT(C12)-INT($C$6)),\"\")","v":{"v":55,"d":"55 "}},{"$f":"IFERROR(IF(マイルストーン_1[[#This Row],[開始日2]]=0,DATEDIF(マイルストーン_1[[#This Row],[開始日]],マイルストーン_1[[#This Row],[終了日]],\"d\")+1,IF(LEN(マイルストーン_1[[#This Row],[開始日2]])=0,\"\",DATEDIF(マイルストーン_1[[#This Row],[開始日]],マイルストーン_1[[#This Row],[終了日]],\"d\")+1)),0)","v":{"v":57,"d":"57 "}}]
[null,8,{"$f":"TODAY()+60","v":"2018-11-02"},{"$f":"マイルストーン_1[[#This Row],[開始日]]+30","v":"2018-12-02"},"アクティビティ 8",{"$f":"IFERROR(IF(OR(LEN(マイルストーン_1[[#This Row],[開始日]])=0,LEN(マイルストーン_1[[#This Row],[終了日]])=0),\"\",INT(C13)-INT($C$6)),\"\")","v":{"v":70,"d":"70 "}},{"$f":"IFERROR(IF(マイルストーン_1[[#This Row],[開始日2]]=0,DATEDIF(マイルストーン_1[[#This Row],[開始日]],マイルストーン_1[[#This Row],[終了日]],\"d\")+1,IF(LEN(マイルストーン_1[[#This Row],[開始日2]])=0,\"\",DATEDIF(マイルストーン_1[[#This Row],[開始日]],マイルストーン_1[[#This Row],[終了日]],\"d\")+1)),0)","v":{"v":31,"d":"31 "}}]
[null,9,{"$f":"TODAY()+37","v":"2018-10-10"},{"$f":"マイルストーン_1[[#This Row],[開始日]]+22","v":"2018-11-01"},"アクティビティ 9",{"$f":"IFERROR(IF(OR(LEN(マイルストーン_1[[#This Row],[開始日]])=0,LEN(マイルストーン_1[[#This Row],[終了日]])=0),\"\",INT(C14)-INT($C$6)),\"\")","v":{"v":47,"d":"47 "}},{"$f":"IFERROR(IF(マイルストーン_1[[#This Row],[開始日2]]=0,DATEDIF(マイルストーン_1[[#This Row],[開始日]],マイルストーン_1[[#This Row],[終了日]],\"d\")+1,IF(LEN(マイルストーン_1[[#This Row],[開始日2]])=0,\"\",DATEDIF(マイルストーン_1[[#This Row],[開始日]],マイルストーン_1[[#This Row],[終了日]],\"d\")+1)),0)","v":{"v":23,"d":"23 "}}]
[null,10,{"$f":"TODAY()-20","v":"2018-08-14"},{"$f":"マイルストーン_1[[#This Row],[開始日]]+160","v":"2019-01-21"},"アクティビティ 10",{"$f":"IFERROR(IF(OR(LEN(マイルストーン_1[[#This Row],[開始日]])=0,LEN(マイルストーン_1[[#This Row],[終了日]])=0),\"\",INT(C15)-INT($C$6)),\"\")","v":{"v":-10,"d":"(10)"}},{"$f":"IFERROR(IF(マイルストーン_1[[#This Row],[開始日2]]=0,DATEDIF(マイルストーン_1[[#This Row],[開始日]],マイルストーン_1[[#This Row],[終了日]],\"d\")+1,IF(LEN(マイルストーン_1[[#This Row],[開始日2]])=0,\"\",DATEDIF(マイルストーン_1[[#This Row],[開始日]],マイルストーン_1[[#This Row],[終了日]],\"d\")+1)),0)","v":{"v":161,"d":"161 "}}]
[null,11,{"$f":"TODAY()+20","v":"2018-09-23"},{"$f":"マイルストーン_1[[#This Row],[開始日]]+65","v":"2018-11-27"},"アクティビティ 11",{"$f":"IFERROR(IF(OR(LEN(マイルストーン_1[[#This Row],[開始日]])=0,LEN(マイルストーン_1[[#This Row],[終了日]])=0),\"\",INT(C16)-INT($C$6)),\"\")","v":{"v":30,"d":"30 "}},{"$f":"IFERROR(IF(マイルストーン_1[[#This Row],[開始日2]]=0,DATEDIF(マイルストーン_1[[#This Row],[開始日]],マイルストーン_1[[#This Row],[終了日]],\"d\")+1,IF(LEN(マイルストーン_1[[#This Row],[開始日2]])=0,\"\",DATEDIF(マイルストーン_1[[#This Row],[開始日]],マイルストーン_1[[#This Row],[終了日]],\"d\")+1)),0)","v":{"v":66,"d":"66 "}}]
[null,12,{"$f":"TODAY()+70","v":"2018-11-12"},{"$f":"マイルストーン_1[[#This Row],[開始日]]+67","v":"2019-01-18"},"アクティビティ 12",{"$f":"IFERROR(IF(OR(LEN(マイルストーン_1[[#This Row],[開始日]])=0,LEN(マイルストーン_1[[#This Row],[終了日]])=0),\"\",INT(C17)-INT($C$6)),\"\")","v":{"v":80,"d":"80 "}},{"$f":"IFERROR(IF(マイルストーン_1[[#This Row],[開始日2]]=0,DATEDIF(マイルストーン_1[[#This Row],[開始日]],マイルストーン_1[[#This Row],[終了日]],\"d\")+1,IF(LEN(マイルストーン_1[[#This Row],[開始日2]])=0,\"\",DATEDIF(マイルストーン_1[[#This Row],[開始日]],マイルストーン_1[[#This Row],[終了日]],\"d\")+1)),0)","v":{"v":68,"d":"68 "}}]
[null,13,{"$f":"TODAY()+90","v":"2018-12-02"},{"$f":"マイルストーン_1[[#This Row],[開始日]]+14","v":"2018-12-16"},"アクティビティ 13",{"$f":"IFERROR(IF(OR(LEN(マイルストーン_1[[#This Row],[開始日]])=0,LEN(マイルストーン_1[[#This Row],[終了日]])=0),\"\",INT(C18)-INT($C$6)),\"\")","v":{"v":100,"d":"100 "}},{"$f":"IFERROR(IF(マイルストーン_1[[#This Row],[開始日2]]=0,DATEDIF(マイルストーン_1[[#This Row],[開始日]],マイルストーン_1[[#This Row],[終了日]],\"d\")+1,IF(LEN(マイルストーン_1[[#This Row],[開始日2]])=0,\"\",DATEDIF(マイルストーン_1[[#This Row],[開始日]],マイルストーン_1[[#This Row],[終了日]],\"d\")+1)),0)","v":{"v":15,"d":"15 "}}]
[null,14,{"$f":"TODAY()+100","v":"2018-12-12"},{"$f":"マイルストーン_1[[#This Row],[開始日]]+3","v":"2018-12-15"},"アクティビティ 14",{"$f":"IFERROR(IF(OR(LEN(マイルストーン_1[[#This Row],[開始日]])=0,LEN(マイルストーン_1[[#This Row],[終了日]])=0),\"\",INT(C19)-INT($C$6)),\"\")","v":{"v":110,"d":"110 "}},{"$f":"IFERROR(IF(マイルストーン_1[[#This Row],[開始日2]]=0,DATEDIF(マイルストーン_1[[#This Row],[開始日]],マイルストーン_1[[#This Row],[終了日]],\"d\")+1,IF(LEN(マイルストーン_1[[#This Row],[開始日2]])=0,\"\",DATEDIF(マイルストーン_1[[#This Row],[開始日]],マイルストーン_1[[#This Row],[終了日]],\"d\")+1)),0)","v":{"v":4,"d":"4 "}}]
[null,15,{"$f":"TODAY()+50","v":"2018-10-23"},{"$f":"マイルストーン_1[[#This Row],[開始日]]+130","v":"2019-03-02"},"アクティビティ 15",{"$f":"IFERROR(IF(OR(LEN(マイルストーン_1[[#This Row],[開始日]])=0,LEN(マイルストーン_1[[#This Row],[終了日]])=0),\"\",INT(C20)-INT($C$6)),\"\")","v":{"v":60,"d":"60 "}},{"$f":"IFERROR(IF(マイルストーン_1[[#This Row],[開始日2]]=0,DATEDIF(マイルストーン_1[[#This Row],[開始日]],マイルストーン_1[[#This Row],[終了日]],\"d\")+1,IF(LEN(マイルストーン_1[[#This Row],[開始日2]])=0,\"\",DATEDIF(マイルストーン_1[[#This Row],[開始日]],マイルストーン_1[[#This Row],[終了日]],\"d\")+1)),0)","v":{"v":131,"d":"131 "}}]
[{"$nulls":5},{"$f":"IFERROR(IF(OR(LEN(マイルストーン_1[[#This Row],[開始日]])=0,LEN(マイルストーン_1[[#This Row],[終了日]])=0),\"\",INT(C21)-INT($C$6)),\"\")","v":""},{"$f":"IFERROR(IF(マイルストーン_1[[#This Row],[開始日2]]=0,DATEDIF(マイルストーン_1[[#This Row],[開始日]],マイルストーン_1[[#This Row],[終了日]],\"d\")+1,IF(LEN(マイルストーン_1[[#This Row],[開始日2]])=0,\"\",DATEDIF(マイルストーン_1[[#This Row],[開始日]],マイルストーン_1[[#This Row],[終了日]],\"d\")+1)),0)","v":""}]
["さらにマイルストーン/アクティビティを追加するには、この行の上に新しい行を挿入します。\nこれは、このワークシートにおける最後の説明です。","さらにマイルストーン/アクティビティを追加するには、この行の上に新しい行を挿入します"]

{"sheet":"プロジェクトのグラフ","index":1,"n_rows":1,"n_cols":1,"rows_kept":1}
["スクロール バーを含むガント チャートは、このワークシートにあります。\nスクロール バーはセル B29 から始まります。\nこれは、このワークシートにおける最後の説明です。"]

{"sheet":"詳細情報","index":2,"n_rows":6,"n_cols":1,"rows_kept":6}
["このブックについて"]
["\nプロジェクト管理ツール ワークシートにデータを入力し、プロジェクト グラフ ワークシートのタイムラインの視覚的な表現をスクロールします。 \n"]
["プロジェクト管理ツール ワークシートの位置列を使用すると、マイルストーンとアクティビティのグラフを別の行に作成できます。たとえば、2 つのマイルストーン/アクティビティを同じ日に開始し、並行して実行することができます。それらの位置値が同じ場合、それらはグラフで重なります。別の行でグラフを作成するには、2 つの一意の値を指定します。演習\n\nグラフが完成したときに、特定のタイムラインでテキストと期間がないマーカーが存在する場合があります。最後のマイルストーンをグラフ外にスクロールしたとき、これらのマーカーはグラフを作成するプロジェクト管理ツールのマイルストーンの最後を示します。グラフの作成が可能なマイルストーンを確認するには、スクロールして元に戻るか、先頭に移動します。\n"]
["スクリーン リーダーのガイド"]
["このブックには 4 つのワークシートがあります。\n\nプロジェクト管理ツール\nプロジェクトのグラフ\n詳細情報\n動的なグラフ データ (非表示)\n\n各ワークシートの説明は、各ワークシートの A 列のセル A1 から始まります。非表示のテキストで書き込まれます。各手順では、その行に含まれる情報について説明しています。明示的な指示がない限り、後続の各手順はセル A2、セル A3 といった順に格納されています。たとえば、説明テキストに、次の手順について \"セル A6 に続く\" と記載されている場合があります。\n\n非表示のテキストは印刷されません。\n\n任意のワークシートからこれらの説明を削除する場合は、列 A を削除するだけです。\n"]
["これは、このワークシートにおける最後の説明です。"]

{"sheet":"非表示の動的なグラフ データ","index":3,"n_rows":10,"n_cols":6,"rows_kept":10,"hidden":true}
["このワークシートのタイトルは、セル B1 にあります。","動的なグラフ データ"]
["水平方向のスクロールの増分の見出しは、セル B2 にあります。\nデータを手動で増分するには、セル B3 に新しい値を入力します。\nガント チャート ワークシートで、スクロール バーを 1 ページ前後に移動すると、スクロール ページが自動更新されます。","水平方向のスクロール増分"]
["ガント チャートの自動更新されるスクロール値は、セル B3 にあります。",0]
["テーブル タイトルはセル B4 にあります。","動的なデータ テーブル"]
["テーブルの見出しは、セル B5 から E5 に入ります。\nメモは、セル F5 にあります。\nこのテーブルは、一度に最大で 5 つのマイルストーンのグラフを作成します。\nこのワークシートまたはその内容を変更したり、削除したりしないでください。","マイルストーン","日付","開始日","期間","<--一度に最大で 5 つのマイルストーンのグラフを作成します"]
[null,{"$f":"IFERROR(IF(LEN(OFFSET(プロジェクト管理ツール!$E6,$B$3,0,1,1))=0,\"\",INDEX(マイルストーン_1[],プロジェクト管理ツール!$B6+$B$3,4)),\"\")","v":"開始"},{"$f":"IFERROR(IF(LEN(OFFSET(プロジェクト管理ツール!$C6,$B$3,0,1,1))=0,終了日,INDEX(マイルストーン_1[],プロジェクト管理ツール!$B6+$B$3,2)),\"\")","v":"2018-08-24"},{"$f":"IFERROR(IF(LEN(OFFSET(プロジェクト管理ツール!$F6,$B$3,0,1,1))=0,\"\",INDEX(マイルストーン_1[],プロジェクト管理ツール!$B6+$B$3,5)),\"\")","v":0},{"$f":"IFERROR(IF(LEN(OFFSET(プロジェクト管理ツール!$G6,$B$3,0,1,1))=0,\"\",INDEX(マイルストーン_1[],プロジェクト管理ツール!$B6+$B$3,6)),\"\")","v":11}]
[null,{"$f":"IFERROR(IF(LEN(OFFSET(プロジェクト管理ツール!$E7,$B$3,0,1,1))=0,\"\",INDEX(マイルストーン_1[],プロジェクト管理ツール!$B7+$B$3,4)),\"\")","v":"アクティビティ 2"},{"$f":"IFERROR(IF(LEN(OFFSET(プロジェクト管理ツール!$C7,$B$3,0,1,1))=0,終了日,INDEX(マイルストーン_1[],プロジェクト管理ツール!$B7+$B$3,2)),\"\")","v":"2018-09-08"},{"$f":"IFERROR(IF(LEN(OFFSET(プロジェクト管理ツール!$F7,$B$3,0,1,1))=0,\"\",INDEX(マイルストーン_1[],プロジェクト管理ツール!$B7+$B$3,5)),\"\")","v":15},{"$f":"IFERROR(IF(LEN(OFFSET(プロジェクト管理ツール!$G7,$B$3,0,1,1))=0,\"\",INDEX(マイルストーン_1[],プロジェクト管理ツール!$B7+$B$3,6)),\"\")","v":16}]
[null,{"$f":"IFERROR(IF(LEN(OFFSET(プロジェクト管理ツール!$E8,$B$3,0,1,1))=0,\"\",INDEX(マイルストーン_1[],プロジェクト管理ツール!$B8+$B$3,4)),\"\")","v":"アクティビティ 3"},{"$f":"IFERROR(IF(LEN(OFFSET(プロジェクト管理ツール!$C8,$B$3,0,1,1))=0,終了日,INDEX(マイルストーン_1[],プロジェクト管理ツール!$B8+$B$3,2)),\"\")","v":"2018-08-04"},{"$f":"IFERROR(IF(LEN(OFFSET(プロジェクト管理ツール!$F8,$B$3,0,1,1))=0,\"\",INDEX(マイルストーン_1[],プロジェクト管理ツール!$B8+$B$3,5)),\"\")","v":-20},{"$f":"IFERROR(IF(LEN(OFFSET(プロジェクト管理ツール!$G8,$B$3,0,1,1))=0,\"\",INDEX(マイルストーン_1[],プロジェクト管理ツール!$B8+$B$3,6)),\"\")","v":153}]
[null,{"$f":"IFERROR(IF(LEN(OFFSET(プロジェクト管理ツール!$E9,$B$3,0,1,1))=0,\"\",INDEX(マイルストーン_1[],プロジェクト管理ツール!$B9+$B$3,4)),\"\")","v":"アクティビティ 4"},{"$f":"IFERROR(IF(LEN(OFFSET(プロジェクト管理ツール!$C9,$B$3,0,1,1))=0,終了日,INDEX(マイルストーン_1[],プロジェクト管理ツール!$B9+$B$3,2)),\"\")","v":"2018-09-05"},{"$f":"IFERROR(IF(LEN(OFFSET(プロジェクト管理ツール!$F9,$B$3,0,1,1))=0,\"\",INDEX(マイルストーン_1[],プロジェクト管理ツール!$B9+$B$3,5)),\"\")","v":12},{"$f":"IFERROR(IF(LEN(OFFSET(プロジェクト管理ツール!$G9,$B$3,0,1,1))=0,\"\",INDEX(マイルストーン_1[],プロジェクト管理ツール!$B9+$B$3,6)),\"\")","v":151}]
[null,{"$f":"IFERROR(IF(LEN(OFFSET(プロジェクト管理ツール!$E10,$B$3,0,1,1))=0,\"\",INDEX(マイルストーン_1[],プロジェクト管理ツール!$B10+$B$3,4)),\"\")","v":"アクティビティ 5"},{"$f":"IFERROR(IF(LEN(OFFSET(プロジェクト管理ツール!$C10,$B$3,0,1,1))=0,終了日,INDEX(マイルストーン_1[],プロジェクト管理ツール!$B10+$B$3,2)),\"\")","v":"2018-09-18"},{"$f":"IFERROR(IF(LEN(OFFSET(プロジェクト管理ツール!$F10,$B$3,0,1,1))=0,\"\",INDEX(マイルストーン_1[],プロジェクト管理ツール!$B10+$B$3,5)),\"\")","v":25},{"$f":"IFERROR(IF(LEN(OFFSET(プロジェクト管理ツール!$G10,$B$3,0,1,1))=0,\"\",INDEX(マイルストーン_1[],プロジェクト管理ツール!$B10+$B$3,6)),\"\")","v":15}]